bitfinex/quotes_ETHUSD_20220106
["timestamp","ask_amount","ask_price","bid_price","bid_amount"]
[1641432149273,0.9991,3533.3,3533.2,1.9269389]
[1641432149473,0.9991,3533.3,3533.2,1.6269389]
[1641432151079,1.3321,3533.3,3533.2,1.6269389]
[1641432153125,1.6651,3533.3,3533.2,1.6269389]
[1641432155324,1.9981,3533.3,3533.2,1.6269389]
[1641432156174,1.9981,3533.3,3533.2,9.2769389]
[1641432156373,1.9981,3533.3,3533.2,9.5769389]
[1641432156575,1.9981,3533.3,3533.2,2.9269389]
[1641432156777,1.9981,3533.3,3533.2,1.9269389]
[1641432157074,1.9981,3533.3,3533.2,3.2269389]
[1641432157274,2.3311,3533.3,3533.2,3.2269389]
[1641432158478,2.3311,3533.3,3533.2,2.2269389]
[1641432159076,7.3311,3533.3,3533.2,2.2269389]
[1641432159276,7.6641,3533.3,3533.2,2.2269389]
[1641432161024,7.6641,3533.3,3533.2,4.23087114]
[1641432161223,4.159484,3533.3,3533.2,4.23087114]
[1641432161628,4.159484,3533.3,3533.2,2.2269389]
[1641432162424,4.159484,3533.3,3533.2,1.9269389]
[1641432163570,4.492484,3533.3,3533.2,1.9269389]
[1641432163770,4.492484,3533.3,3533.2,2.9269389]
[1641432163970,4.492484,3533.3,3533.2,5.26674616]
[1641432164169,1.665,3533.6,3533.3,7.73861879]
[1641432164368,1.665,3533.6,3533.4,1.759498]
[1641432164570,1.665,3533.6,3533.5,0.3]
[1641432164769,1.665,3533.6,3533.5,9.50223543]
[1641432164970,1.665,3533.6,3533.5,9.56778442]
[1641432165173,1.665,3533.6,3533.5,10.56778442]
[1641432165375,0.333,3533.7,3533.6,6.4]
[1641432165577,0.333,3533.7,3533.6,8.045]
[1641432165773,0.333,3533.7,3533.6,9.61225426]
[1641432166474,0.283,3533.7,3533.6,2.21225426]
[1641432166674,0.283,3533.7,3533.6,3.21225426]
[1641432166875,0.283,3533.7,3533.6,5.22653997]
[1641432167726,0.616,3533.7,3533.6,5.22653997]
[1641432169229,0.08176018,3533.9,3533.6,5.22653997]
[1641432169430,0.08176018,3533.9,3533.7,1.4144509]
[1641432169630,0.08176018,3533.9,3533.8,2.42865019]
[1641432169831,0.41476018,3533.9,3533.8,0.41054899]
[1641432170030,0.41476018,3533.9,3533.8,0.71054899]
[1641432170973,1.23637217,3535.4,3534.0,1.13935923]
[1641432171176,3.8961,3535.8,3534.1,10.445]
[1641432171376,3.8961,3535.8,3534.1,10.51054899]
[1641432171575,0.00170527,3534.2,3534.1,0.51694899]
[1641432171776,0.00170527,3534.2,3534.1,0.345]
[1641432171975,0.33470527,3534.2,3534.1,1.80167289]
[1641432172178,0.33470527,3534.2,3534.1,1.90807289]
[1641432172377,0.33470527,3534.2,3534.1,1.80167289]
[1641432172982,5.27e-06,3534.2,3534.1,2.53172769]
[1641432173884,0.33300527,3534.2,3534.1,2.53172769]
[1641432174083,0.33300527,3534.2,3534.1,3.74747235]
[1641432174727,0.33300527,3534.2,3534.1,2.83172769]
[1641432176234,0.66600527,3534.2,3534.1,0.71054899]
[1641432176832,0.2646963,3534.2,3534.1,0.71054899]
[1641432178232,0.5976963,3534.2,3534.1,0.71054899]
[1641432179278,0.4206465,3534.5,3534.2,6.9]
[1641432179479,0.4206465,3534.5,3534.3,0.345]
[1641432179677,5.1848,3536.1,3534.4,10.56237853]
[1641432179877,1.2843,3534.7,3534.5,0.345]
[1641432180081,1.2843,3534.7,3534.5,0.753]
[1641432180278,1.6173,3534.7,3534.6,1.37533655]
[1641432180479,1.6173,3534.7,3534.6,0.06554899]
[1641432180680,1.6173,3534.7,3534.4,1.5]
[1641432180681,1.62014212,3534.7,3534.4,1.5]
[1641432180986,0.00227369,3534.6,3534.4,1.5]
[1641432181380,1.6173,3534.7,3534.4,1.5]
[1641432181381,0.00170527,3534.5,3534.4,1.5]
[1641432182328,0.33470527,3534.5,3534.4,1.5]
[1641432184428,0.66770527,3534.5,3534.4,1.5]
[1641432186482,1.00070527,3534.5,3534.4,1.5]
[1641432188586,1.33370527,3534.5,3534.4,1.5]
[1641432189384,1.33370527,3534.5,3534.4,1.8]
[1641432189826,1.33370527,3534.5,3534.4,1.7828]
[1641432190327,1.33370527,3534.5,3534.4,1.7328]
[1641432190526,1.66670527,3534.5,3534.4,1.7328]
[1641432192328,1.6173,3534.7,3534.4,1.7328]
[1641432192530,1.6173,3534.7,3534.5,0.70713]
[1641432192729,1.9503,3534.7,3534.5,0.70713]
[1641432193972,1.9503,3534.7,3534.6,0.2828]
[1641432194373,1.95143685,3534.7,3534.6,0.2828]
[1641432194573,0.2828,3534.6,3533.9,2.522302]
[1641432194774,0.01210449,3534.1,3533.4,0.1104]
[1641432195073,0.01210449,3534.1,3533.3,3.63963693]
[1641432195475,0.01210449,3534.1,3533.6,0.70736]
[1641432195679,2.99179495,3534.7,3534.0,2.13735188]
[1641432195979,2.99179495,3534.7,3534.1,0.0022737]
[1641432196878,3.32479495,3534.7,3534.1,0.0022737]
[1641432198931,2.95043685,3534.7,3534.1,0.0022737]
[1641432199131,0.7074037,3534.5,3534.1,0.0022737]
[1641432200333,3.65780315,3534.7,3534.1,0.0022737]
[1641432200533,2.95043685,3534.7,3534.1,0.0022737]
[1641432200971,3.28343685,3534.7,3534.1,0.0022737]
[1641432201171,3.28343685,3534.7,3534.2,1.16942523]
[1641432201370,3.99081295,3534.7,3534.1,0.0022737]
[1641432201570,3.99081295,3534.7,3534.3,0.00113685]
[1641432201777,3.28343685,3534.7,3534.3,0.00113685]
[1641432203076,3.61643685,3534.7,3534.3,0.00113685]
[1641432205257,3.94943685,3534.7,3534.3,0.00113685]
[1641432207264,4.28243685,3534.7,3534.3,0.00113685]
[1641432208075,9.28243685,3534.7,3534.3,0.00113685]
[1641432209185,1.38176877,3534.4,3534.3,0.00113685]
[1641432209793,9.61543685,3534.7,3534.3,0.00113685]
[1641432211294,10.80852425,3534.7,3534.3,0.00113685]
[1641432211496,9.94843685,3534.7,3534.3,0.00113685]
[1641432211696,9.94843685,3534.7,3534.2,0.00170527]
[1641432212532,11.13597013,3534.7,3534.2,0.00170527]
[1641432213636,11.46897013,3534.7,3534.2,0.00170527]
[1641432214033,10.28143685,3534.7,3534.2,0.00170527]
[1641432215634,10.61443685,3534.7,3534.2,0.00170527]
[1641432217891,10.94743685,3534.7,3534.2,0.00170527]
[1641432219935,11.28043685,3534.7,3534.2,0.00170527]
[1641432220132,11.28043685,3534.7,3534.3,0.41054899]
[1641432220532,11.28043685,3534.7,3534.4,0.06554899]
[1641432220734,11.28043685,3534.7,3534.5,0.345]
[1641432221134,11.28043685,3534.7,3534.6,0.06554899]
[1641432221433,11.28043685,3534.7,3534.6,0.41054899]
[1641432222034,11.61343685,3534.7,3534.6,0.41054899]
[1641432223476,7.77676783,3534.7,3534.6,0.41054899]
[1641432224082,8.10976783,3534.7,3534.6,0.41054899]
[1641432225482,8.10976783,3534.7,3534.6,0.345]
[1641432226081,8.44276783,3534.7,3534.6,0.345]
[1641432228233,8.77576783,3534.7,3534.6,0.345]
[1641432228836,1.27273,3534.5,3534.2,0.06725426]
[1641432229034,1.27273,3534.5,3534.2,0.00170527]
[1641432229235,1.27273,3534.5,3534.3,0.0022737]
[1641432229435,1.27273,3534.5,3534.1,0.00341055]
[1641432230243,1.60573,3534.5,3534.1,0.00341055]
[1641432230637,3.0205086,3534.5,3534.1,0.00341055]
[1641432230874,2.16155385,3534.4,3534.1,0.00341055]
[1641432231077,1.60573,3534.5,3534.1,0.00341055]
[1641432232281,1.35997434,3534.2,3534.1,0.00341055]
[1641432233485,3.52641952,3534.2,3534.1,0.00341055]
[1641432233688,10.07212328,3534.0,3533.9,0.72212328]
[1641432233886,10.07212328,3534.0,3532.7,0.73838618]
[1641432233887,0.72212328,3533.9,3532.7,0.73838618]
[1641432234086,1.33240558,3532.9,3532.3,1.16383749]
[1641432234286,1.2134,3533.7,3532.3,1.16383749]
[1641432234487,1.2134,3533.7,3532.4,0.00966319]
[1641432234735,1.4152935,3533.6,3532.4,0.00966319]
[1641432234931,1.92105,3533.7,3532.4,0.00966319]
[1641432235332,1.20922694,3532.9,3532.4,0.00966319]
[1641432235734,1.20922694,3532.9,3532.3,0.01023162]
[1641432238577,6.9672,3533.6,3532.4,0.7075933]
[1641432238778,7.3002,3533.6,3532.4,0.77314229]
[1641432239078,8.00782,3533.6,3532.5,0.00909477]
[1641432239884,1.11629442,3532.9,3532.5,0.00909477]
[1641432242141,7.3002,3533.6,3532.5,0.00909477]
[1641432242345,7.6332,3533.6,3532.5,0.00909477]
[1641432243744,1.0700253,3533.5,3532.5,0.71666557]
[1641432244144,1.0700253,3533.5,3532.6,0.00852635]
[1641432244344,1.4030253,3533.5,3532.6,0.00852635]
[1641432244545,0.333,3533.5,3532.6,0.00852635]
[1641432245145,0.333,3533.5,3532.7,0.70229899]
[1641432245343,0.333,3533.5,3532.7,0.06554899]
[1641432245544,0.333,3533.5,3532.8,0.41793849]
[1641432245743,0.333,3533.5,3532.8,1.70535183]
[1641432245979,0.333,3533.5,3532.9,0.00682108]
[1641432246379,0.666,3533.5,3532.9,0.00682108]
[1641432246578,0.666,3533.5,3533.0,1.3441538]
[1641432246977,0.666,3533.5,3533.1,0.00568423]
[1641432247982,0.666,3533.5,3533.1,0.64236423]
[1641432248183,0.666,3533.5,3533.4,1.18157608]
[1641432248381,0.666,3533.5,3533.2,0.00511581]
[1641432248586,0.999,3533.5,3533.4,0.00397896]
[1641432248782,0.999,3533.5,3533.0,1.5]
[1641432248783,0.999,3533.5,3533.1,0.00568423]
[1641432248984,5.999,3533.5,3533.1,0.00568423]
[1641432249383,5.999,3533.5,3533.2,1.40694021]
[1641432249826,5.999,3533.5,3533.3,0.00454738]
[1641432250728,6.332,3533.5,3533.3,0.00454738]
[1641432252729,6.665,3533.5,3533.3,0.00454738]
[1641432254185,6.665,3533.5,3533.3,0.71509637]
[1641432254384,6.665,3533.5,3533.3,1.38219637]
[1641432254584,0.92222,3533.5,3533.4,7.01117896]
[1641432254783,0.666,3533.6,3533.5,5.8]
[1641432254983,1.05512328,3533.9,3533.6,4.05]
[1641432255183,1.05512328,3533.9,3533.7,0.345]
[1641432255485,3.77576783,3534.7,3533.9,2.9]
[1641432255685,3.77576783,3534.7,3534.0,1.345]
[1641432255885,0.00170528,3534.4,3534.0,1.345]
[1641432256088,0.00170528,3534.4,3534.0,0.41054899]
[1641432256289,0.00113685,3534.3,3534.2,0.70713]
[1641432256587,0.00113685,3534.3,3534.2,1.05213]
[1641432256788,0.33413685,3534.3,3534.2,1.05213]
[1641432257442,0.33413685,3534.3,3534.2,1.11767899]
[1641432257837,0.33413685,3534.3,3534.2,1.25085076]
[1641432258842,0.66713685,3534.3,3534.2,1.25085076]
[1641432260744,1.00013685,3534.3,3534.2,1.25085076]
[1641432261180,1.00013685,3534.3,3534.2,0.54372076]
[1641432261585,1.00013685,3534.3,3534.2,0.47817177]
[1641432262989,1.33313685,3534.3,3534.2,0.47817177]
[1641432265138,1.66613685,3534.3,3534.2,0.47817177]
[1641432267241,1.99913685,3534.3,3534.2,0.47817177]
[1641432269399,2.33213685,3534.3,3534.2,0.47817177]
[1641432269994,0.07923691,3534.3,3534.2,0.47817177]
[1641432271196,1.19565193,3534.3,3534.2,0.47817177]
[1641432271394,1.52865193,3534.3,3534.2,0.47817177]
[1641432273435,1.86165193,3534.3,3534.2,0.47817177]
[1641432274437,1.86165193,3534.3,3534.2,0.13317177]
[1641432274838,7.36165193,3534.3,3534.2,0.13317177]
[1641432275237,7.36165193,3534.3,3533.9,0.13317177]
[1641432275438,0.7074337,3534.2,3533.9,0.13317177]
[1641432275641,0.7074337,3534.2,3534.0,0.00170527]
[1641432276698,1.4148937,3534.2,3534.0,0.00170527]
[1641432276901,2.8298536,3534.2,3534.0,0.00170527]
[1641432277102,0.70746,3534.2,3534.0,0.00170527]
[1641432277502,0.333,3534.2,3534.0,0.00170527]
[1641432278404,0.333,3534.2,3534.1,0.13317177]
[1641432278804,3.283,3534.2,3534.1,0.13430862]
[1641432279405,0.333,3534.2,3534.1,0.13430862]
[1641432279632,0.666,3534.2,3534.1,0.13430862]
[1641432280833,0.666,3534.2,3533.8,1.5]
[1641432280834,1.17444361,3533.1,3532.5,1.50731652]
[1641432281035,8.9189,3534.1,3532.7,0.41054899]
[1641432281232,8.9189,3534.1,3532.8,0.345]
[1641432281233,5.0189,3534.1,3532.8,0.345]
[1641432281634,5.0189,3534.1,3532.9,0.00682108]
[1641432281832,5.3519,3534.1,3533.0,0.345]
[1641432282236,0.333,3534.1,3533.4,1.5]
[1641432282538,0.333,3534.1,3533.5,0.00341054]
[1641432282737,1.41810577,3534.0,3533.5,0.00341054]
[1641432283136,1.41810577,3534.0,3533.5,0.34841054]
[1641432283591,1.41810577,3534.0,3533.6,0.00284211]
[1641432283991,1.75110577,3534.0,3533.6,0.00284211]
[1641432286190,2.08410577,3534.0,3533.6,0.00284211]
[1641432288338,2.41710577,3534.0,3533.6,0.00284211]
[1641432290339,2.75010577,3534.0,3533.6,0.00284211]
[1641432291892,2.95316071,3533.9,3533.6,0.00284211]
[1641432292093,0.3,3533.8,3533.6,0.00284211]
[1641432292293,0.3,3533.8,3533.5,0.00341054]
[1641432292494,0.3,3533.8,3532.3,7.38125774]
[1641432292495,10.35,3533.7,3532.3,0.01255774]
[1641432292696,0.70772,3533.0,3532.1,4.23029276]
[1641432292896,0.70772,3533.0,3532.4,0.00625265]
[1641432293199,3.1311999,3532.9,3532.4,0.00625265]
[1641432293796,3.1311999,3532.9,3531.7,2.01023162]
[1641432293998,1.44669977,3532.0,3531.8,0.00966319]
[1641432294198,1.41554,3532.4,3531.8,0.00966319]
[1641432294399,0.70777,3532.4,3531.7,0.01023162]
[1641432295248,1.42220151,3532.0,3531.7,0.01023162]
[1641432295853,0.70772,3532.5,3531.7,0.01023162]
[1641432296050,0.70771,3532.8,3531.7,0.01023162]
[1641432297554,1.2001,3532.9,3531.7,0.01023162]
[1641432297754,1.2001,3532.9,3531.9,0.7076523]
[1641432297954,1.2001,3532.9,3532.1,1.5]
[1641432298412,1.06900085,3532.9,3532.2,1.18634]
[1641432298608,1.06900085,3532.9,3532.2,3.16986976]
[1641432298811,1.06900085,3532.9,3532.3,0.00682108]
[1641432299708,0.333,3533.0,3532.3,0.00682108]
[1641432299910,0.666,3533.0,3532.3,0.00682108]
[1641432301016,1.79547713,3533.0,3532.3,0.00682108]
[1641432301916,2.12847713,3533.0,3532.3,0.00682108]
[1641432302352,7.12847713,3533.0,3532.3,0.00682108]
[1641432303954,7.46147713,3533.0,3532.3,0.00682108]
[1641432304154,7.45979026,3533.0,3532.3,0.00682108]
[1641432304956,6.33031313,3533.0,3532.3,0.00682108]
[1641432305154,6.33031313,3533.0,3532.4,0.345]
[1641432305355,6.33031313,3533.0,3532.5,2.15951916]
[1641432305555,6.33031313,3533.0,3532.6,0.345]
[1641432305754,6.33031313,3533.0,3532.6,0.35011581]
[1641432305994,0.00056843,3532.6,3532.3,0.457]
[1641432306196,0.00056843,3532.6,3532.1,1.5]
[1641432306491,0.00056843,3532.6,3532.4,0.00170527]
[1641432306995,4.63916689,3533.0,3532.4,0.00170527]
[1641432307192,1.36927278,3532.7,3532.2,0.00397897]
[1641432307392,0.70775,3532.6,3532.2,0.00397897]
[1641432308997,4.63916689,3533.0,3532.2,0.00397897]
[1641432309197,4.97216689,3533.0,3532.2,0.00397897]
[1641432310243,6.18657442,3533.0,3532.2,0.00397897]
[1641432310441,0.70768,3532.9,3532.2,0.00397897]
[1641432311839,6.18657442,3533.0,3532.2,0.00397897]
[1641432312040,7.22721442,3533.0,3532.2,0.00397897]
[1641432312239,7.52721442,3533.0,3532.2,0.00397897]
[1641432312441,6.01280689,3533.0,3532.2,0.00397897]
[1641432312645,6.31280689,3533.0,3532.2,0.00397897]
[1641432312843,6.01280689,3533.0,3532.2,0.00397897]
[1641432313487,6.6108076,3533.0,3532.2,0.00397897]
[1641432314096,6.9438076,3533.0,3532.2,0.00397897]
[1641432314294,8.3592176,3533.0,3532.2,0.00397897]
[1641432314696,1.4154033,3532.9,3532.2,0.00397897]
[1641432314896,0.70772,3532.6,3532.2,0.00397897]
[1641432315098,0.7077,3532.9,3532.2,0.00397897]
[1641432315099,2.21848597,3532.9,3532.2,0.00397897]
[1641432315295,1.41561,3532.6,3532.2,0.00397897]
[1641432315496,0.3,3532.5,3532.2,0.00397897]
[1641432315696,1.0078,3532.5,3532.2,0.00397897]
[1641432315897,2.4234227,3532.5,3532.2,0.00397897]
[1641432316099,2.1234227,3532.5,3532.2,0.00397897]
[1641432316702,1.41562,3532.5,3532.2,0.00397897]
[1641432316900,0.70782,3532.5,3532.2,0.00397897]
[1641432320352,0.7077,3532.6,3532.2,0.00397897]
[1641432320992,0.7077,3532.6,3532.5,1.21102664]
[1641432321190,0.707742,3532.7,3532.2,0.00397897]
[1641432321389,0.707742,3532.7,3532.5,0.0022737]
[1641432321593,0.707742,3532.7,3532.2,0.00397897]
[1641432321791,1.007742,3532.7,3532.2,0.00397897]
[1641432322591,1.007742,3532.7,3532.3,1.18389066]
[1641432322995,1.007742,3532.7,3532.4,0.00284212]
[1641432323797,0.707742,3532.7,3532.4,0.00284212]
[1641432323996,5.63816689,3533.0,3532.5,0.345]
[1641432324197,5.97116689,3533.0,3532.5,0.345]
[1641432324502,5.97116689,3533.0,3532.6,0.00170528]
[1641432324744,5.97116689,3533.0,3532.6,0.34670528]
[1641432325144,5.97116689,3533.0,3532.7,0.00113685]
[1641432325750,6.27116689,3533.0,3532.7,0.00113685]
[1641432326150,1.8379799,3532.9,3532.7,0.00113685]
[1641432326552,2.1379799,3532.9,3532.4,0.00284212]
[1641432326852,0.7076723,3532.7,3532.2,0.00397897]
[1641432327453,0.7076723,3532.7,3532.3,1.26530584]
[1641432327854,0.7076723,3532.7,3532.4,0.00284212]
[1641432328053,1.0076723,3532.7,3532.4,0.00284212]
[1641432328694,0.9886723,3532.7,3532.4,0.00284212]
[1641432329293,0.7077285,3532.5,3532.2,0.00397897]
[1641432332000,0.70773,3532.6,3532.2,0.00397897]
[1641432333043,0.70773,3532.6,3532.2,1.25348106]
[1641432333444,0.70773,3532.6,3532.3,0.00341055]
[1641432333445,1.00773,3532.6,3532.3,0.00341055]
[1641432334244,0.95773,3532.6,3532.2,0.00397897]
[1641432334447,1.4154757,3532.5,3532.2,0.00397897]
[1641432335247,0.25,3532.6,3532.2,0.00397897]
[1641432335449,8.01960689,3533.0,3532.2,0.00397897]
[1641432335647,8.35260689,3533.0,3532.2,0.00397897]
[1641432336191,8.65260689,3533.0,3532.2,0.00397897]
[1641432336593,0.70769,3532.9,3532.2,0.00397897]
[1641432336789,1.41538,3532.8,3532.2,0.00397897]
[1641432336988,0.3,3532.7,3532.2,0.00397897]
[1641432337496,1.7154287,3532.9,3532.2,0.00397897]
[1641432337694,0.70771,3532.6,3532.2,0.00397897]
[1641432337894,1.41551,3532.8,3532.2,0.00397897]
[1641432338195,0.7077554,3532.4,3532.2,0.00397897]
[1641432344488,1.4155354,3532.4,3532.2,0.00397897]
[1641432346493,0.6,3532.3,3532.2,0.00397897]
[1641432347148,1.818,3532.3,3532.2,0.00397897]
[1641432347347,1.1343697,3531.6,3531.1,0.01023163]
[1641432347548,0.70803,3531.4,3531.1,0.01023163]
[1641432348157,2.1241307,3531.4,3531.1,0.01023163]
[1641432348353,0.7080504,3531.3,3531.1,0.01023163]
[1641432348552,2.8321607,3531.4,3530.8,1.32955852]
[1641432348752,0.70802,3531.2,3530.8,0.0119369]
[1641432348952,0.70802,3531.2,3530.9,0.01136848]
[1641432349157,0.70802,3531.2,3530.8,0.0119369]
[1641432349352,1.41609,3531.3,3530.8,0.0119369]
[1641432349554,1.4160382,3531.1,3530.8,0.0119369]
[1641432349752,1.46895175,3531.0,3530.8,0.0119369]
[1641432350558,7.2836273,3531.0,3530.8,0.0119369]
[1641432350759,5.00947765,3531.0,3530.8,0.0119369]
[1641432351028,1.46895175,3531.0,3530.8,0.0119369]
[1641432351229,2.17709175,3531.0,3530.8,0.0119369]
[1641432351628,19.48529945,3531.0,3530.8,0.0119369]
[1641432351828,19.48529945,3531.0,3530.7,0.7103468]
[1641432351829,18.81786197,3530.9,3529.3,4.5]
[1641432352028,21.28466197,3530.9,3529.3,4.5]
[1641432352227,0.13819997,3530.8,3529.4,0.00795793]
[1641432352630,16.6,3530.6,3529.4,0.00795793]
[1641432352831,18.97468938,3530.5,3529.4,0.00795793]
[1641432353034,19.27468938,3530.5,3529.4,0.00795793]
[1641432353238,1.0,3530.4,3529.4,0.00795793]
[1641432353432,2.23548812,3530.3,3529.4,0.00795793]
[1641432353634,2.18579055,3530.2,3529.4,0.00795793]
[1641432354433,1.47745055,3530.2,3529.4,0.00795793]
[1641432354646,1.77745055,3530.2,3529.4,0.00795793]
[1641432354845,2.89431055,3530.2,3529.4,0.00795793]
[1641432355044,1.0,3530.1,3529.4,0.00795793]
[1641432355246,1.5,3530.1,3528.6,0.01250532]
[1641432355445,1.8,3530.1,3528.6,0.01250532]
[1641432355749,17.30852,3530.0,3528.9,1.21034959]
[1641432355945,0.7084754,3529.9,3528.9,1.21034959]
[1641432356144,1.0,3529.9,3529.0,0.01023162]
[1641432356645,1.41697,3530.0,3529.0,0.01023162]
[1641432357444,1.18305363,3529.7,3529.0,0.01023162]
[1641432358900,0.7085,3529.5,3529.0,0.01023162]
[1641432360706,17.3085,3529.5,3528.6,0.01250532]
[1641432361508,1.19528706,3528.9,3528.6,0.01250532]
[1641432362848,19.0172,3529.4,3528.6,0.01250532]
[1641432363553,0.70861,3529.0,3528.6,0.01250532]
[1641432363751,1.19376831,3528.7,3528.6,0.01250532]
[1641432365552,0.18805886,3528.7,3528.6,0.01250532]
[1641432366992,0.70861,3529.0,3528.6,0.01250532]
[1641432367193,1.0,3529.3,3528.6,0.01250532]
[1641432367393,1.2269,3529.8,3528.6,0.01250532]
[1641432367593,1.2269,3529.8,3528.6,4.51250532]
[1641432367996,4.24121726,3529.7,3529.1,1.43240364]
[1641432368197,20.5492,3529.9,3529.1,1.43240364]
[1641432368396,20.5492,3529.9,3529.2,0.00909477]
[1641432368702,0.70846,3529.7,3529.2,0.00909477]
[1641432369195,0.70846,3529.7,3529.1,1.43240364]
[1641432369196,2.53166848,3528.7,3528.6,4.5]
[1641432369395,2.53166848,3528.7,3528.6,5.94166327]
[1641432369651,2.53166848,3528.7,3528.6,4.50341055]
[1641432381194,0.51042932,3528.7,3528.6,4.50341055]
[1641432389893,1.97420736,3528.7,3528.6,4.50341055]
[1641432391001,0.51042932,3528.7,3528.6,4.50341055]
[1641432396501,0.11732726,3528.7,3528.6,4.50341055]
[1641432399505,0.11732726,3528.7,3528.6,4.5]
[1641432402557,0.11732726,3528.7,3528.6,6.50889025]
[1641432402758,0.11732726,3528.7,3528.6,6.85389025]
[1641432403060,5.001,3530.2,3528.7,5.4]
[1641432403257,5.001,3530.2,3529.2,0.70839]
[1641432403504,0.00341054,3529.8,3528.9,1.41677]
[1641432403703,0.00341054,3529.8,3528.8,2.3694111]
[1641432403704,0.00341054,3529.8,3528.8,0.3472737]
[1641432403903,1.41677,3530.1,3529.2,0.7084275]
[1641432403904,1.46955128,3529.6,3529.2,0.7084275]
[1641432404304,0.00170527,3529.5,3528.9,1.41856708]
[1641432404505,1.15539688,3529.0,3528.9,1.41856708]
[1641432404705,1.15539688,3529.0,3528.9,1.4168618]
[1641432406604,16.58113684,3529.4,3529.0,0.7084511]
[1641432406805,16.58113684,3529.4,3529.0,1.4169111]
[1641432407005,16.58113684,3529.4,3529.0,0.70846]
[1641432407663,1.45636421,3529.1,3529.0,0.70846]
[1641432408058,1.45636421,3529.1,3529.0,0.70959685]
[1641432412122,1.45636421,3529.1,3529.0,0.00113685]
[1641432415154,18.03636421,3529.1,3529.0,0.00113685]
[1641432415554,18.03636421,3529.1,3528.7,0.00284212]
[1641432416154,0.70863,3529.0,3528.8,0.7086159]
[1641432416354,16.58,3528.9,3528.7,0.00284212]
[1641432416558,16.58,3528.9,3528.5,0.7103468]
[1641432416953,16.58,3528.9,3528.6,0.00341055]
[1641432417553,16.58,3528.9,3528.7,0.7086621]
[1641432417957,16.58,3528.9,3528.8,0.0022737]
[1641432419803,17.58,3528.9,3528.8,0.0022737]
[1641432420003,8.5,3528.7,3527.1,8.7108]
[1641432420204,8.5,3528.7,3528.6,0.00113685]
[1641432420607,9.5,3528.7,3527.5,0.0073895]
[1641432420805,1.41763,3528.3,3527.9,0.7088134]
[1641432421003,1.41763,3528.3,3527.7,1.4175371]
[1641432421004,16.58,3528.2,3527.7,1.4175371]
[1641432421204,16.58,3528.2,3528.0,0.00454739]
[1641432421406,16.58,3528.2,3527.1,8.91763]
[1641432421407,10.4,3528.1,3527.8,0.00568423]
[1641432421605,10.4,3528.1,3527.2,0.00909477]
[1641432422005,1.08073727,3527.9,3527.2,0.00909477]
[1641432422244,2.49858727,3527.9,3527.2,0.00909477]
[1641432422447,16.58,3527.8,3527.2,0.71800467]
[1641432422848,16.58,3527.8,3527.3,0.00852635]
[1641432423748,16.58,3527.6,3527.3,0.00852635]
[1641432425753,16.88,3527.6,3527.3,0.00852635]
[1641432426011,1.0,3527.5,3527.3,0.00852635]
[1641432426212,16.58,3527.4,3527.1,0.0096632]
[1641432426610,1.24232501,3527.3,3527.1,0.0096632]
[1641432427213,16.58,3527.2,3527.1,0.0096632]
[1641432427416,16.58,3527.2,3527.0,0.01023162]
[1641432429851,2.24232501,3527.3,3527.0,0.71918682]
[1641432430051,1.24232501,3527.3,3527.0,0.71918682]
[1641432430251,1.24232501,3527.3,3527.1,0.0096632]
[1641432433600,5.0,3527.5,3527.1,0.0096632]
[1641432433796,5.0,3527.5,3527.2,0.7088434]
[1641432434200,5.0,3527.5,3527.3,0.00852635]
[1641432434600,1.11278025,3527.4,3527.3,0.00852635]
[1641432435099,5.0,3527.5,3527.3,0.00852635]
[1641432435699,5.0,3527.5,3527.3,0.71728635]
[1641432436102,5.0,3527.5,3527.4,0.00795793]
[1641432445262,5.0,3527.5,3527.4,2.05286267]
[1641432445662,5.0,3527.5,3527.4,2.35286267]
[1641432445863,5.0,3527.5,3527.4,0.30795793]
[1641432446868,5.0,3527.5,3527.4,0.00795793]
[1641432453858,5.0,3527.5,3527.3,0.00852635]
[1641432454658,21.58,3527.5,3527.3,0.00852635]
[1641432455658,5.0,3527.5,3527.3,0.00852635]
[1641432455897,21.58,3527.5,3527.3,0.00852635]
[1641432459005,5.0,3527.5,3527.3,0.00852635]
[1641432461669,5.0,3527.5,3526.4,0.7103468]
[1641432461670,16.58,3527.0,3526.4,0.7103468]
[1641432461864,0.01223064,3526.6,3526.4,0.7103468]
[1641432462064,0.01223064,3526.6,3526.5,0.00454739]
[1641432462664,17.90359273,3526.6,3526.5,0.00454739]
[1641432463705,17.89136209,3526.6,3526.5,0.00454739]
[1641432464702,18.89136209,3526.6,3526.5,0.00454739]
[1641432465510,18.89136209,3526.6,3526.4,0.7103468]
[1641432465511,9.6,3526.5,3525.4,1.41824]
[1641432465710,0.70924,3526.2,3525.4,1.4183676]
[1641432465912,0.70924,3526.2,3525.5,0.00568423]
[1641432466112,16.58,3526.1,3525.5,0.00568423]
[1641432466511,2.45508137,3526.0,3525.1,0.00795793]
[1641432466916,17.28931,3525.9,3525.1,0.00795793]
[1641432467149,16.58,3525.8,3525.1,0.00795793]
[1641432467760,16.58,3525.8,3525.1,1.42642413]
[1641432468156,16.58,3526.4,3525.2,0.0073895]
[1641432468557,16.58,3526.4,3525.1,0.00795793]
[1641432468758,16.58,3526.4,3525.6,6.17]
[1641432469158,16.58,3526.4,3525.7,0.00454739]
[1641432469360,0.70923,3526.2,3525.7,0.00454739]
[1641432469661,17.92294468,3526.1,3525.7,0.00454739]
[1641432470063,16.58,3525.9,3525.7,0.00454739]
[1641432470260,4.55,3525.7,3524.6,6.0]
[1641432470463,0.70941,3525.2,3524.6,6.0]
[1641432470660,0.70941,3525.2,3524.7,0.00568423]
[1641432471102,1.0,3525.5,3524.7,0.00568423]
[1641432471304,1.18808639,3525.0,3524.7,0.00568423]
[1641432471503,1.18808639,3525.0,3524.4,0.63843]
[1641432471504,17.76808639,3525.0,3524.4,0.6458195]
[1641432471704,17.76808639,3525.0,3524.6,0.00625265]
[1641432472004,17.76808639,3525.0,3524.5,0.00682108]
[1641432472808,17.76808639,3525.0,3524.5,0.71616928]
[1641432473211,17.76808639,3525.0,3524.6,0.00625265]
[1641432474750,1.18808639,3525.0,3524.6,0.00625265]
[1641432474947,17.76808639,3525.0,3524.6,0.00625265]
[1641432475150,4.9606,3525.7,3524.6,0.64465265]
[1641432475351,4.9606,3525.7,3525.0,0.7092631]
[1641432475561,25.78670272,3526.3,3525.0,0.7092631]
[1641432475759,25.78670272,3526.3,3525.1,0.00341054]